bitfinex-derivatives/quotes_SOLF0:USTF0_20240827
["timestamp","ask_amount","ask_price","bid_price","bid_amount"]
[1724762631207,3.264,153.16,153.15,1.90204614]
[1724762631461,7.984,153.16,153.15,1.90204614]
[1724762632019,3.265,153.12,153.03,3.8115]
[1724762632206,0.04522952,153.09,153.06,20.04]
[1724762632412,0.04183776,153.09,153.08,20.04]
[1724762632608,3.2646,153.14,153.08,20.04]
[1724762632911,4.72,153.16,153.09,4.5539]
[1724762633113,3.2646,153.14,153.09,1.2885]
[1724762633315,3.34366873,153.2,153.09,1.2885]
[1724762633549,3.34366873,153.2,153.1,21.3935]
[1724762633550,4.72,153.19,153.1,21.3935]
[1724762633713,0.04519932,153.16,153.13,0.04183776]
[1724762634113,0.04519932,153.16,153.13,20.08183776]
[1724762634519,0.04519932,153.16,153.13,0.04183776]
[1724762635639,3.30929932,153.16,153.13,0.04183776]
[1724762636221,3.2644,153.15,153.13,0.04183776]
[1724762636420,0.04519932,153.16,153.13,0.04183776]
[1724762637510,3.2644,153.14,153.13,0.04183776]
[1724762637728,0.04519932,153.16,153.13,0.04183776]
[1724762638521,3.2644,153.14,153.13,0.04183776]
[1724762639719,3.2643,153.15,153.13,0.04183776]
[1724762639911,0.04519932,153.16,153.13,0.04183776]
[1724762640114,4.76519932,153.16,153.13,0.04183776]
[1724762640318,3.2644,153.14,153.13,0.04183776]
[1724762640523,4.76519932,153.16,153.13,0.04183776]
[1724762640716,0.04519932,153.16,153.13,0.04183776]
[1724762642023,3.2644,153.15,153.13,0.04183776]
[1724762642516,3.2644,153.14,153.13,0.04183776]
[1724762643120,3.2643,153.15,153.13,0.04183776]
[1724762643932,3.2644,153.14,153.13,0.04183776]
[1724762644522,0.04519932,153.16,153.13,0.04183776]
[1724762645130,3.2644,153.14,153.13,0.04183776]
[1724762646823,0.04519932,153.16,152.95,11.80715877]
[1724762646824,3.2655,153.09,152.95,11.80715877]
[1724762647023,3.2655,153.09,153.05,20.04]
[1724762647220,3.2655,153.09,153.05,23.26143265]
[1724762647420,3.2655,153.09,153.06,3.266]
[1724762647819,0.04812644,153.09,153.05,24.53203265]
[1724762648120,4.72,153.13,153.05,24.53203265]
[1724762648325,3.2652,153.11,153.08,3.2657]
[1724762648922,3.30840837,153.11,153.08,3.31062377]
[1724762649120,3.2653,153.1,153.08,3.31062377]
[1724762649324,0.04320837,153.11,153.08,3.31062377]
[1724762649520,0.04320837,153.11,153.09,3.2654]
[1724762649718,0.04320837,153.11,153.08,0.04492377]
[1724762650120,3.2655,153.1,153.08,0.04492377]
[1724762652028,3.30830837,153.11,153.08,0.04492377]
[1724762652527,3.30830837,153.11,153.08,3.31052377]
[1724762652730,3.30830837,153.11,153.08,0.04492377]
[1724762653818,3.30830837,153.11,153.08,3.31052377]
[1724762654125,3.2654,153.1,153.08,3.31052377]
[1724762654337,0.04320837,153.11,153.08,0.04492377]
[1724762657654,0.04320837,153.11,152.95,5.27045877]
[1724762657655,20.04,153.09,152.95,5.27045877]
[1724762657903,20.04,153.1,152.95,5.27045877]
[1724762657904,26.12,153.1,152.95,5.27045877]
[1724762658055,5.04,153.09,152.75,6.82427651]
[1724762658320,5.04,153.09,152.75,9.48077651]
[1724762658742,5.04,153.09,152.76,13.02260378]
[1724762658774,0.04412751,152.94,152.81,20.04]
[1724762659087,0.0453002,152.89,152.82,3.55633721]
[1724762659344,0.04212689,152.87,152.83,7.99309417]
[1724762659367,5.4,152.99,152.85,20.04]
[1724762659368,3.33474194,152.99,152.85,20.04]
[1724762659652,20.04,152.92,152.74,2.89995043]
[1724762659779,1.0,153.08,152.86,1.30729301]
[1724762659780,6.62,152.94,152.86,1.30729301]
[1724762660136,6.62,152.94,152.79,3.20899506]
[1724762660345,0.04392307,152.88,152.85,0.04644892]
[1724762660541,20.08392307,152.88,152.78,1.30787884]
[1724762660738,20.04,152.9,152.78,20.04]
[1724762661041,20.04,152.88,152.76,6.62]
[1724762661342,20.04,152.88,152.76,20.04]
[1724762661539,0.04813326,152.84,152.76,20.04]
[1724762661735,0.04813326,152.84,152.82,20.04]
[1724762661942,6.62,152.91,152.83,25.14]
[1724762662152,1.0,152.93,152.85,25.14]
[1724762662343,6.62,152.97,152.85,25.14]
[1724762662753,6.62,152.97,152.91,25.14]
[1724762662958,0.04971542,152.96,152.92,0.04813326]
[1724762663155,0.04921473,152.96,152.94,25.14]
[1724762663359,6.62,153.06,152.94,25.14]
[1724762663656,6.62,153.06,152.96,25.14]
[1724762664050,6.62,153.06,152.99,25.14]
[1724762664255,6.62,153.06,152.94,25.14]
[1724762664256,0.04473526,153.04,153.01,0.04618912]
[1724762664452,0.04362788,153.04,153.01,0.04689918]
[1724762664647,25.18362788,153.04,153.01,0.04689918]
[1724762664855,0.04362788,153.04,153.01,0.04689918]
[1724762665274,25.14,153.06,152.86,25.14]
[1724762665275,25.14,153.02,152.86,25.14]
[1724762665558,25.14,153.02,152.86,28.44586412]
[1724762665954,28.43801948,153.02,152.86,28.44586412]
[1724762666153,0.04725878,152.96,152.92,0.04433617]
[1724762666353,25.18725878,152.96,152.92,0.04252688]
[1724762667757,0.04725878,152.96,152.92,0.04252688]
[1724762669152,25.14,153.02,152.91,25.14]
[1724762669851,6.62,153.05,152.9,3.23772479]
[1724762669852,25.14,153.05,152.94,25.14]
[1724762670046,25.14,153.07,152.96,25.14]
[1724762670251,25.14,153.07,152.98,0.04522934]
[1724762670252,0.04844423,153.01,152.98,0.04522934]
[1724762670454,25.14,153.07,152.98,0.04522934]
[1724762671156,25.14,153.05,152.98,0.04522934]
[1724762671360,25.14,153.05,152.95,2.6137]
[1724762671579,0.04262805,153.03,153.0,0.04237209]
[1724762672661,25.14,153.09,152.98,25.14]
[1724762673063,31.76,153.12,153.0,25.14]
[1724762673259,31.76,153.12,153.02,25.14]
[1724762673466,25.14,153.12,153.02,25.14]
[1724762673683,0.04316891,153.09,153.05,0.04297371]
[1724762674056,25.14,153.12,153.05,0.04297371]
[1724762674655,25.14,153.14,153.05,0.04297371]
[1724762675061,0.04180256,153.11,153.05,25.18297371]
[1724762675362,25.14,153.18,153.07,25.14]
[1724762675667,25.14,153.21,153.07,25.14]
[1724762676366,0.04435261,153.16,153.12,0.04239123]
[1724762678163,6.62,153.23,153.12,25.18239123]
[1724762678365,6.62,153.23,153.12,25.14]
[1724762678559,25.14,153.22,153.12,25.14]
[1724762679369,0.04832169,153.19,153.15,0.04390193]
[1724762685672,0.04832169,153.19,153.15,0.04390193]
[1724762691874,224.0,153.45,153.18,25.14]
[1724762692075,31.9434,153.38,153.26,25.14]
[1724762692283,25.4634,153.38,153.26,25.14]
[1724762692476,6.48,153.37,153.26,25.14]
[1724762692779,6.48,153.36,153.28,25.14]
[1724762692981,0.04184082,153.33,153.3,0.05000369]
[1724762697269,6.48,153.39,153.32,25.14]
[1724762697473,25.14,153.44,153.32,25.14]
[1724762697474,6.48,153.42,153.33,2.5618]
[1724762698289,0.04108891,153.39,153.36,0.0431927]
[1724762701484,25.14,153.37,153.36,0.0431927]
[1724762701682,0.04108891,153.39,153.36,0.0431927]
[1724762703984,25.14,153.38,153.36,0.0431927]
[1724762704179,25.14,153.38,153.29,1.2529]
[1724762704386,25.14,153.32,153.23,6.48]
[1724762704581,25.14,153.3,153.19,25.14]
[1724762704784,31.62,153.3,153.19,25.14]
[1724762705291,0.05017117,153.26,153.23,0.04395051]
[1724762711498,6.48,153.32,153.23,0.04395051]
[1724762711698,25.14,153.34,153.24,25.14]
[1724762711997,6.48,153.34,153.25,2.5822]
[1724762712600,0.04885819,153.31,153.28,0.04349454]
[1724762712798,0.04885819,153.31,153.28,25.18349454]
[1724762712998,6.48,153.39,153.3,25.14]
[1724762713492,25.14,153.41,153.3,25.14]
[1724762713996,0.04198411,153.37,153.34,0.04507339]
[1724762722103,25.18198411,153.37,153.34,0.04507339]
[1724762722696,0.04198411,153.37,153.34,0.04507339]
[1724762724504,6.44,153.41,153.35,25.14]
[1724762724809,32.0406,153.49,153.39,25.14]
[1724762725505,0.04699557,153.46,153.42,0.04558295]
[1724762727407,224.0,153.6,153.44,25.14]
[1724762727709,25.14,153.56,153.44,25.14]
[1724762727908,25.14,153.56,153.46,25.14]
[1724762728103,25.14,153.59,153.46,25.14]
[1724762728315,0.04752063,153.54,153.51,0.04649951]
[1724762729306,3.30332063,153.54,153.51,0.04649951]
[1724762729507,0.04752063,153.54,153.51,0.04649951]
[1724762731308,3.256,153.53,153.51,0.04649951]
[1724762731512,0.04752063,153.54,153.51,0.04649951]
[1724762732412,3.30312063,153.54,153.51,0.04649951]
[1724762732811,0.04752063,153.54,153.51,0.04649951]
[1724762733010,3.256,153.52,153.51,0.04649951]
[1724762734312,30.08752063,153.54,153.51,0.04649951]
[1724762734313,0.04752063,153.54,153.51,0.04649951]
[1724762735014,3.30332063,153.54,153.51,0.04649951]
[1724762735616,0.04752063,153.54,153.51,0.04649951]
[1724762736119,3.30312063,153.54,153.51,0.04649951]
[1724762736917,3.2558,153.53,153.51,0.04649951]
[1724762738409,0.04752063,153.54,153.51,30.08649951]
[1724762738610,0.04752063,153.54,153.52,1.2628]
[1724762738812,3.2549,153.58,153.53,3.2558]
[1724762739017,0.1373,153.63,153.53,3.2558]
[1724762739216,30.1773,153.63,153.52,2.567]
[1724762739820,0.04306946,153.59,153.56,0.04326496]
[1724762740018,3.255,153.57,153.56,0.04326496]
[1724762740211,30.04,153.58,153.46,6.44]
[1724762740614,3.256,153.53,153.48,3.2568]
[1724762741117,0.04108771,153.52,153.49,0.04174441]
[1724762741323,0.04108771,153.52,153.5,3.2565]
[1724762741527,0.04108771,153.52,153.49,30.08174441]
[1724762741912,0.04108771,153.52,153.5,3.2565]
[1724762742625,0.04108771,153.52,153.51,3.2563]
[1724762743621,0.04108771,153.52,153.5,3.2564]
[1724762745424,0.04108771,153.52,153.49,0.04174441]
[1724762745928,0.04108771,153.52,153.49,3.29824441]
[1724762746226,0.04108771,153.52,153.49,0.04174441]
[1724762746721,0.04108771,153.52,153.5,3.2563]
[1724762747229,0.04108771,153.52,153.51,3.2563]
[1724762747724,0.04108771,153.52,153.5,4.5913]
[1724762747922,0.04108771,153.52,153.49,0.04174441]
[1724762748925,3.2565,153.5,153.49,0.04174441]
[1724762749120,0.04108771,153.52,153.49,0.04174441]
[1724762750729,0.04108771,153.52,153.5,30.04]
[1724762751623,0.04108771,153.52,153.5,33.2963]
[1724762751930,0.04108771,153.52,153.5,30.04]
[1724762753433,0.04108771,153.52,153.51,3.2563]
[1724762757834,0.04108771,153.52,153.5,29.5562]
[1724762758022,0.04108771,153.52,153.5,26.2997]
[1724762759425,0.04108771,153.52,153.51,3.2563]
[1724762760830,0.04108771,153.52,153.49,0.04174441]
[1724762761031,3.2564,153.51,153.49,0.04174441]
[1724762761224,0.04108771,153.52,153.49,0.04174441]
[1724762761835,0.04108771,153.52,153.51,3.2563]
[1724762762230,0.04108771,153.52,153.49,25.06174441]
[1724762762435,0.04108771,153.52,153.49,0.04174441]
[1724762762732,3.2565,153.5,153.49,0.04174441]
[1724762762936,25.02,153.52,153.43,28.2779]
[1724762763132,25.02,153.52,153.43,25.02]
[1724762763133,6.12,153.52,153.43,25.02]
[1724762763445,28.25855651,153.57,153.48,3.2569]
[1724762763740,6.12,153.55,153.47,25.02]
[1724762763942,0.04412391,153.53,153.49,0.04679884]
[1724762764239,3.2565,153.5,153.49,0.04679884]
[1724762764540,0.04412391,153.53,153.49,0.04679884]
[1724762764942,0.04412391,153.53,153.5,3.2563]
[1724762765240,0.04412391,153.53,153.51,25.02]
[1724762765739,0.04412391,153.53,153.52,3.256]
[1724762765936,224.0,153.62,153.51,25.02]
[1724762766138,3.2548,153.58,153.54,28.2754]
[1724762766635,3.2548,153.58,153.54,25.02]
[1724762766936,3.30465049,153.58,153.54,25.06398323]
[1724762767242,0.04985049,153.58,153.54,25.06398323]
[1724762767837,3.30465049,153.58,153.54,25.06398323]
[1724762768039,3.30465049,153.58,153.54,0.04398323]
[1724762768541,3.255,153.57,153.54,0.04398323]
[1724762768943,3.30465049,153.58,153.54,0.04398323]
[1724762769236,3.30465049,153.58,153.54,3.29958323]
[1724762770535,0.04985049,153.58,153.54,0.04398323]
[1724762771141,3.255,153.57,153.54,0.04398323]
[1724762771736,3.30465049,153.58,153.54,3.29958323]
[1724762772230,0.04985049,153.58,153.55,3.2553]
[1724762772435,0.04985049,153.58,153.54,25.06398323]
[1724762772838,0.04985049,153.58,153.55,3.2554]
[1724762773041,0.04985049,153.58,153.54,25.06398323]
[1724762773242,0.04985049,153.58,153.54,0.04398323]
[1724762773437,3.2552,153.57,153.54,0.04398323]
[1724762773834,0.04985049,153.58,153.54,0.04398323]
[1724762775041,0.04985049,153.58,153.54,25.06398323]
[1724762775441,0.04985049,153.58,153.54,0.04398323]
[1724762775943,3.2551,153.57,153.54,0.04398323]
[1724762776449,3.30475049,153.58,153.54,28.31958323]
[1724762777544,3.255,153.57,153.54,28.31958323]
[1724762778148,3.30465049,153.58,153.55,3.2553]
[1724762778650,3.30465049,153.58,153.54,25.06398323]
[1724762778948,3.2551,153.57,153.54,28.31958323]
[1724762779642,0.04985049,153.58,153.54,25.06398323]
[1724762779942,0.04985049,153.58,153.56,25.02]
[1724762780453,0.04985049,153.58,153.57,3.255]
[1724762781145,250.08,153.68,153.56,25.02]
[1724762781346,250.08,153.68,153.59,25.02]
[1724762781347,26.08,153.68,153.59,25.02]
[1724762781549,32.06,153.68,153.59,25.02]
[1724762781751,32.06,153.68,153.6,3.2543]
[1724762781954,32.06,153.68,153.59,25.02]
[1724762782154,3.29656971,153.65,153.62,0.04432904]
[1724762782361,0.04316971,153.65,153.62,0.04432904]
[1724762782756,3.2537,153.63,153.62,0.04432904]
[1724762784255,25.02,153.63,153.55,5.7965]
[1724762784460,25.02,153.63,153.53,1.2306]
[1724762784860,3.2548,153.58,153.54,3.2555]
[1724762785061,3.2548,153.58,153.53,1.2306]
[1724762785256,0.04991071,153.57,153.54,0.04429711]
[1724762786467,3.27710413,153.67,153.56,25.02]
[1724762786760,5.98,153.66,153.59,3.2544]
[1724762786964,5.98,153.66,153.57,1.2784]
[1724762787357,0.03790221,153.63,153.61,3.2541]
[1724762787966,3.29170221,153.63,153.6,3.29784446]
[1724762788156,0.03790221,153.63,153.6,0.04354446]
[1724762788757,3.2541,153.61,153.6,0.04354446]
[1724762788964,0.03790221,153.63,153.6,0.04354446]
[1724762789360,3.29160221,153.63,153.6,3.29784446]
[1724762789967,0.03790221,153.63,153.6,3.29784446]
[1724762790664,3.29160221,153.63,153.6,3.29784446]
[1724762791560,0.03790221,153.63,153.6,0.04354446]
[1724762792767,0.03790221,153.63,153.61,3.2541]
[1724762793075,0.03790221,153.63,153.6,0.04354446]
[1724762793370,3.29160221,153.63,153.6,3.29774446]
[1724762793573,0.03790221,153.63,153.6,0.04354446]
[1724762793774,3.2541,153.61,153.6,0.04354446]
[1724762795871,3.254,153.62,153.6,0.04354446]
[1724762796669,0.03790221,153.63,153.61,3.2541]
[1724762797069,0.03790221,153.63,153.6,0.04354446]
[1724762797977,0.03790221,153.63,153.6,25.06354446]
[1724762798675,0.03790221,153.63,153.61,3.2541]
[1724762798873,0.03790221,153.63,153.6,25.06354446]
[1724762799177,249.5348,153.74,153.62,25.02]
[1724762799379,5.98,153.72,153.62,25.02]
[1724762799674,3.2526,153.69,153.65,3.2532]
[1724762800181,3.2526,153.69,153.65,3.30050713]
[1724762800775,5.98,153.75,153.65,25.06730713]
[1724762801076,5.98,153.75,153.68,0.04889601]
[1724762801272,3.2524,153.7,153.68,0.04889601]
[1724762801467,25.02,153.74,153.68,0.04889601]
[1724762801870,9.29585254,153.75,153.68,0.04889601]
[1724762802066,5.98,153.75,153.68,0.04889601]
[1724762803877,3.2521,153.71,153.68,0.04889601]
[1724762804578,25.02,153.74,153.68,0.04889601]
[1724762805285,3.2524,153.69,153.68,0.04889601]
[1724762805981,26.2772,153.77,153.68,0.04889601]
[1724762806183,5.86,153.76,153.68,0.04889601]
[1724762806477,3.2518,153.72,153.69,3.2524]
[1724762807476,5.86,153.76,153.68,28.32149601]
[1724762807672,5.86,153.76,153.68,0.04889601]
[1724762808074,3.2522,153.71,153.68,0.04889601]
[1724762808474,5.86,153.76,153.68,0.04889601]
[1724762809482,3.2523,153.7,153.68,0.04889601]
[1724762809682,5.86,153.76,153.68,0.04889601]
[1724762809985,3.2524,153.69,153.68,0.04889601]
[1724762810281,25.02,153.7,153.62,1.342]
[1724762810475,3.2537,153.63,153.62,1.342]
[1724762810974,3.2539,153.62,153.61,1.2649]
[1724762811182,25.02,153.68,153.57,28.8894]
[1724762811382,0.04889601,153.64,153.61,0.04137569]
[1724762811682,3.2539,153.62,153.61,0.04137569]
[1724762816884,3.2539,153.62,153.52,5.86]
[1724762816885,3.2555,153.55,153.51,25.02]
[1724762817087,25.02,153.62,153.51,25.02]
[1724762817387,25.02,153.6,153.5,2.583]
[1724762817888,25.02,153.6,153.53,0.04740986]
[1724762817889,0.04244323,153.57,153.53,0.04740986]
[1724762819385,3.2556,153.54,153.53,0.04740986]
[1724762819989,3.2555,153.55,153.53,0.04740986]
[1724762820585,3.2556,153.54,153.53,0.04740986]
[1724762820988,0.04244323,153.57,153.53,0.04740986]
[1724762822089,3.2555,153.55,153.53,0.04740986]
[1724762823193,0.04244323,153.57,153.53,25.06740986]
[1724762823592,3.29754323,153.57,153.53,25.06740986]
[1724762824089,0.04244323,153.57,153.53,25.06740986]
[1724762824287,3.2552,153.56,153.53,25.06740986]
[1724762824797,3.2556,153.54,153.53,0.04740986]
[1724762829398,0.04244323,153.57,153.53,0.04740986]
[1724762830399,3.2552,153.56,153.53,0.04740986]
[1724762830695,0.04244323,153.57,153.53,0.04740986]
[1724762831091,3.2556,153.55,153.53,0.04740986]
[1724762831396,0.04244323,153.57,153.53,0.04740986]
[1724762831896,3.2555,153.55,153.53,0.04740986]
[1724762836995,0.04244323,153.57,153.53,0.04740986]
[1724762837588,3.2556,153.54,153.53,0.04740986]
[1724762839290,20.07244323,153.57,153.53,0.04740986]
[1724762840294,0.04244323,153.57,153.53,0.04740986]
[1724762840493,3.2552,153.56,153.53,0.04740986]
[1724762841002,0.04244323,153.57,153.53,0.04740986]
[1724762841296,3.29754323,153.57,153.54,3.2556]
[1724762841895,3.2553,153.56,153.53,3.30320986]
[1724762842893,3.2553,153.56,153.53,0.04740986]
[1724762843094,3.2554,153.55,153.53,0.04740986]
[1724762844000,3.2556,153.54,153.53,0.04740986]
[1724762844896,3.2555,153.55,153.53,0.04740986]
[1724762845604,0.04244323,153.57,153.53,0.04740986]
[1724762846396,3.29744323,153.57,153.53,0.04740986]
[1724762846898,3.2553,153.56,153.53,3.30310986]
[1724762847699,3.29744323,153.57,153.54,3.2555]
[1724762847900,0.04244323,153.57,153.53,0.04740986]
[1724762848302,0.04244323,153.57,153.54,3.2555]
[1724762848600,0.04244323,153.57,153.53,20.07740986]
[1724762848800,0.04244323,153.57,153.53,21.30950986]
[1724762849105,0.04244323,153.57,153.54,3.2555]
[1724762849994,0.04244323,153.57,153.53,24.56520986]
[1724762850193,3.29754323,153.57,153.53,24.56520986]
[1724762850500,3.29754323,153.57,153.53,21.30950986]
[1724762851202,0.04244323,153.57,153.54,3.2554]
[1724762851397,0.04244323,153.57,153.53,0.04740986]
[1724762852703,3.2556,153.54,153.53,0.04740986]
[1724762855207,23.2856,153.54,153.53,0.04740986]
[1724762855601,20.03,153.5,153.46,2.5587]
[1724762855999,3.2571,153.47,153.46,2.5587]
[1724762858211,5.3,153.58,153.46,22.5887]
[1724762858411,25.33,153.58,153.48,20.03]
[1724762858614,3.256,153.53,153.49,3.2566]
[1724762858801,3.256,153.53,153.48,20.03]
[1724762859006,25.33,153.58,153.48,20.03]
[1724762859307,3.2558,153.54,153.51,0.04149574]
[1724762859508,0.04320124,153.55,153.51,0.04149574]
[1724762859708,3.2558,153.54,153.51,0.04149574]
[1724762860905,3.2559,153.53,153.51,0.04149574]
[1724762861304,0.04320124,153.55,153.51,0.04149574]
[1724762862114,3.2556,153.54,153.51,0.04149574]
[1724762862909,3.2559,153.53,153.51,0.04149574]
[1724762863408,3.29880124,153.55,153.52,3.256]
[1724762863806,0.04320124,153.55,153.51,0.04149574]
[1724762864710,3.2557,153.54,153.51,3.29769574]
[1724762866112,3.256,153.53,153.51,0.04149574]
[1724762866310,0.04320124,153.55,153.51,0.04149574]
[1724762866709,3.2557,153.54,153.51,0.04149574]
[1724762866911,0.04320124,153.55,153.51,0.04149574]
[1724762867307,20.03,153.54,153.51,0.04149574]
[1724762867814,20.03,153.52,153.43,1.2401]
[1724762868203,20.03,153.54,153.44,20.03]
[1724762868402,25.04,153.55,153.46,25.04]
[1724762868608,0.04373263,153.52,153.49,0.04630166]
[1724762868811,0.04373263,153.52,153.5,3.2564]
[1724762871617,0.04373263,153.52,153.51,3.2563]
[1724762876716,3.2555,153.55,153.52,3.2558]
[1724762877111,25.04,153.57,153.51,3.256]
[1724762877615,0.04826833,153.56,153.52,0.04772843]
[1724762877815,3.2554,153.55,153.52,0.04772843]
[1724762878611,3.2554,153.55,153.52,3.30362843]
[1724762879021,0.04826833,153.56,153.52,3.30362843]
[1724762879222,0.04826833,153.56,153.52,0.04772843]
[1724762879414,3.2554,153.55,153.52,0.04772843]
[1724762880119,3.2557,153.54,153.52,0.04772843]
[1724762880518,0.04826833,153.56,153.54,3.2555]
[1724762880718,0.04826833,153.56,153.52,25.08772843]
[1724762882721,0.04826833,153.56,153.55,3.2554]
[1724762883625,6.8007159,153.74,153.6,98.0]
[1724762883922,25.04,153.77,153.67,25.04]
[1724762884134,3.2514,153.74,153.69,3.2522]
[1724762884321,25.04,153.77,153.67,25.04]
[1724762884518,0.03849549,153.74,153.7,0.04532853]
[1724762884721,0.03849549,153.74,153.7,3.29752853]
[1724762885224,0.03849549,153.74,153.7,0.04532853]
[1724762885526,3.2516,153.73,153.7,0.04532853]
[1724762886231,3.28989549,153.74,153.7,0.04532853]
[1724762887524,0.03849549,153.74,153.7,0.04532853]
[1724762887724,0.03849549,153.74,153.7,31.29532853]
[1724762888224,0.03849549,153.74,153.7,32.63172853]
[1724762888834,0.03849549,153.74,153.7,33.93502853]
[1724762889028,0.03849549,153.74,153.7,1.38172853]
[1724762889229,31.25,153.73,153.7,0.04532853]
[1724762889535,31.25,153.71,153.7,0.04532853]
[1724762889719,31.25,153.71,153.62,1.3364]
[1724762890025,31.25,153.68,153.62,1.3364]
[1724762890229,3.2532,153.66,153.62,1.3364]
[1724762890428,31.25,153.7,153.62,1.3364]
[1724762890933,3.2532,153.66,153.64,0.05000294]
[1724762891337,0.04159601,153.68,153.64,0.05000294]
[1724762891541,3.2533,153.65,153.64,0.05000294]
[1724762891931,31.25,153.66,153.58,1.2534]
[1724762892131,3.2542,153.61,153.58,1.2534]
[1724762892331,3.2542,153.61,153.56,3.2551]
[1724762892332,31.25,153.66,153.56,36.55]
[1724762892831,3.2539,153.62,153.56,36.55]
[1724762893037,0.04209721,153.63,153.59,0.04827103]
[1724762893238,0.04209721,153.63,153.59,3.30267103]
[1724762893835,0.04209721,153.63,153.6,3.2542]
[1724762894041,0.04209721,153.63,153.6,34.5042]
[1724762894242,0.04209721,153.63,153.6,35.8123]
[1724762896041,31.25,153.73,153.62,31.25]
[1724762896235,5.3,153.7,153.63,1.2788]
[1724762896435,3.2533,153.65,153.63,1.2788]
[1724762896637,5.3,153.7,153.63,1.2788]
[1724762896835,5.3,153.72,153.63,1.2788]
[1724762897139,0.04872949,153.69,153.66,0.04905688]
[1724762897940,3.2529,153.67,153.66,0.04905688]
[1724762898444,3.2527,153.68,153.66,0.04905688]
[1724762898934,0.04872949,153.69,153.66,0.04905688]
[1724762900244,0.04872949,153.69,153.66,3.30195688]
[1724762900839,3.30132949,153.69,153.66,0.04905688]
[1724762901740,74.85866473,154.02,153.67,31.25]
[1724762901741,9.7432,153.92,153.67,31.25]
[1724762901940,0.81517332,153.91,153.78,31.25]
[1724762902136,31.25,153.9,153.78,31.25]
[1724762902335,31.25,153.89,153.78,31.25]
[1724762902545,3.17671565,153.88,153.78,31.25]
[1724762902738,3.2495,153.83,153.81,0.04529818]
[1724762903837,3.2497,153.82,153.81,0.04529818]
[1724762904841,0.04186715,153.85,153.81,0.04529818]
[1724762905943,0.04186715,153.85,153.83,3.2495]
[1724762906247,0.04186715,153.85,153.83,34.4995]
[1724762907052,0.04186715,153.85,153.83,31.25]
[1724762907444,0.04186715,153.85,153.82,3.2496]
[1724762907643,0.04186715,153.85,153.81,0.04529818]
[1724762908352,0.04186715,153.85,153.81,3.29499818]
[1724762908549,0.04186715,153.85,153.81,0.04529818]
[1724762909052,0.04186715,153.85,153.83,3.2495]
[1724762909748,0.04186715,153.85,153.84,3.2493]
[1724762911452,0.04186715,153.85,153.83,34.4994]
[1724762911856,0.04186715,153.85,153.83,31.25]
[1724762912454,3.2485,153.88,153.84,3.2493]
[1724762913051,3.248,153.9,153.85,31.25]
[1724762913253,9.1373,153.95,153.85,31.25]
[1724762913551,3.2479,153.91,153.88,0.04455544]
[1724762915055,3.2475,153.93,153.89,3.2482]
[1724762915256,3.2475,153.93,153.89,3.29120166]
[1724762916560,3.2472,153.94,153.9,3.2479]
[1724762917063,3.2474,153.93,153.89,34.54120166]
[1724762917252,5.3,153.96,153.89,0.04300166]
[1724762918254,3.248,153.9,153.89,0.04300166]
[1724762918456,5.3,153.96,153.89,0.04300166]
[1724762918656,3.2479,153.91,153.89,0.04300166]
[1724762919556,3.248,153.9,153.89,0.04300166]
[1724762924960,5.3,153.96,153.89,0.04300166]
[1724762925465,3.2477,153.92,153.89,0.04300166]
[1724762926365,5.3,153.96,153.89,3.29120166]
[1724762926657,5.3,153.96,153.89,0.04300166]
[1724762927164,36.55,153.96,153.89,0.04300166]
[1724762927353,3.248,153.9,153.89,0.04300166]
[1724762929463,3.2493,153.84,153.7,6.5042]
[1724762929677,3.2493,153.84,153.79,31.25]
[1724762930262,3.2495,153.83,153.79,31.25]
[1724762930463,3.29072702,153.83,153.79,31.2929753]
[1724762931362,0.04122702,153.83,153.79,31.2929753]
[1724762931757,0.04122702,153.83,153.81,34.4998]
[1724762931956,0.04122702,153.83,153.81,31.25]
[1724762932462,0.04122702,153.83,153.82,3.2497]
[1724762932662,6.529,153.91,153.81,31.25]
[1724762932970,6.529,153.91,153.83,3.2494]